bitfinex/quotes_SOLUSD_20241125
["timestamp","ask_amount","ask_price","bid_price","bid_amount"]
[1732520497007,23.776884,253.12,253.05,1.1855]
[1732520497401,23.776884,253.14,253.05,4.1493]
[1732520497608,23.776884,253.16,253.05,4.1493]
[1732520497810,23.776884,253.14,253.05,4.1493]
[1732520498214,23.776884,253.16,253.05,4.1493]
[1732520498411,23.776884,253.14,253.05,4.1493]
[1732520499218,23.776884,253.14,253.09,1.1853]
[1732520499425,23.776884,253.19,253.09,1.1853]
[1732520499725,0.74069785,253.18,253.09,1.1853]
[1732520499898,0.74068225,253.21,253.09,1.1853]
[1732520500426,0.74068225,253.21,253.1,20.0]
[1732520500604,0.74068225,253.21,253.11,1.1852]
[1732520500929,0.74061917,253.23,253.11,1.1852]
[1732520501921,23.776884,253.22,253.11,1.1852]
[1732520502229,23.776884,253.2,253.11,1.1852]
[1732520502528,0.74063112,253.19,253.11,1.1852]
[1732520503127,23.776884,253.18,253.08,20.0]
[1732520503426,23.776884,253.16,253.08,20.0]
[1732520503625,23.776884,253.14,253.08,20.0]
[1732520504125,0.74077088,253.15,253.08,20.0]
[1732520504322,20.0,253.3,253.08,20.0]
[1732520504323,6.58920817,253.24,253.08,20.0]
[1732520504527,0.74068889,253.23,253.08,20.0]
[1732520505025,0.74068889,253.23,253.12,20.0]
[1732520505603,24.51750769,253.22,253.12,20.0]
[1732520505805,0.74062369,253.22,253.12,20.0]
[1732520506021,23.776884,253.21,253.13,1.1851]
[1732520506230,23.776884,253.19,253.13,1.1851]
[1732520507718,0.74061332,253.25,253.13,1.1851]
[1732520508025,0.74050318,253.27,253.17,20.0]
[1732520508535,0.74045598,253.31,253.17,20.0]
[1732520509008,6.58920817,253.3,253.18,1.1849]
[1732520509325,0.74047,253.29,253.18,1.1849]
[1732520509628,23.776884,253.28,253.18,1.1849]
[1732520509839,23.776884,253.26,253.18,1.1849]
[1732520510129,0.74044531,253.25,253.18,1.1849]
[1732520510431,23.776884,253.26,253.18,1.1849]
[1732520510932,0.74044887,253.25,253.18,1.1849]
[1732520511334,0.74044887,253.25,253.15,1.185]
[1732520511335,23.776884,253.24,253.15,1.185]
[1732520511629,23.776884,253.22,253.17,20.0]
[1732520511830,23.776884,253.2,253.17,20.0]
[1732520512337,23.776884,253.25,253.17,20.0]
[1732520512634,23.776884,253.23,253.17,20.0]
[1732520512929,0.74060279,253.22,253.17,20.0]
[1732520513130,0.74060335,253.24,253.17,20.0]
[1732520513329,23.776884,253.27,253.18,1.1849]
[1732520513534,23.776884,253.25,253.18,1.1849]
[1732520513847,23.776884,253.23,253.18,1.1849]
[1732520514020,0.74055618,253.22,253.15,1.185]
[1732520514227,23.776884,253.23,253.15,1.185]
[1732520514545,0.74060228,253.22,253.15,1.185]
[1732520514716,23.776884,253.21,253.11,1.1852]
[1732520514909,23.776884,253.19,253.12,5.33179873]
[1732520515109,23.776884,253.17,253.12,5.33179873]
[1732520515327,23.776884,253.17,253.13,1.1851]
[1732520515918,0.74066853,253.25,253.13,1.1851]
[1732520516114,23.776884,253.24,253.15,20.0]
[1732520516435,23.776884,253.22,253.15,20.0]
[1732520516625,23.776884,253.2,253.15,21.185]
[1732520516828,0.74061332,253.19,253.15,21.185]
[1732520517314,0.74061332,253.19,253.12,5.33179873]
[1732520517315,30.36609217,253.18,252.95,15.9299]
[1732520517514,30.36609217,253.16,253.09,1.1853]
[1732520517820,23.776884,253.14,253.02,18.4097]
[1732520518024,0.74085197,253.13,253.03,1.1856]
[1732520519116,0.74085197,253.13,253.05,20.0]
[1732520520238,23.776884,253.12,253.06,1.1854]
[1732520520441,0.7408638,253.11,253.06,1.1854]
[1732520521736,23.776884,253.12,253.06,1.1854]
[1732520522034,23.776884,253.16,253.06,1.1854]
[1732520522220,23.776884,253.14,253.06,1.1854]
[1732520522416,0.74081936,253.13,253.06,1.1854]
[1732520522622,23.776884,253.14,253.06,1.1854]
[1732520522821,0.74078767,253.13,253.06,1.1854]
[1732520523242,23.776884,253.14,253.06,1.1854]
[1732520523835,23.776884,253.18,253.07,20.0]
[1732520524139,0.74064892,253.22,253.07,29.90669242]
[1732520524916,0.74064892,253.22,253.08,4.1487]
[1732520525626,0.74060108,253.23,253.12,20.0]
[1732520525848,0.74051925,253.28,253.12,20.0]
[1732520526345,0.74051925,253.28,253.12,25.33179873]
[1732520526651,0.74051925,253.28,253.13,4.148]
[1732520527028,23.776884,253.27,253.13,4.148]
[1732520527223,0.74049947,253.26,253.13,4.148]
[1732520527541,23.776884,253.25,253.13,4.148]
[1732520527868,23.776884,253.23,253.13,4.148]
[1732520528028,23.776884,253.21,253.13,4.148]
[1732520528220,0.74061781,253.2,253.13,4.148]
[1732520529464,0.74060834,253.2,253.13,4.148]
[1732520529664,23.776884,253.21,253.13,4.148]
[1732520530168,0.74058935,253.2,253.13,4.148]
[1732520530339,23.776884,253.21,253.13,4.148]
[1732520530539,23.776884,253.23,253.13,4.148]
[1732520530859,6.1872,253.29,253.13,4.148]
[1732520530860,0.74055749,253.28,253.13,4.148]
[1732520531761,0.74047339,253.27,253.13,4.148]
[1732520532163,23.776884,253.26,253.13,4.148]
[1732520532347,0.74049028,253.25,253.13,4.148]
[1732520532750,23.776884,253.28,253.13,4.148]
[1732520532949,23.776884,253.26,253.13,4.148]
[1732520535246,0.74041885,253.29,253.17,20.0]
[1732520535466,6.58920817,253.3,253.17,20.0]
[1732520535661,0.74045942,253.29,253.17,20.0]
[1732520536471,23.776884,253.28,253.18,1.1849]
[1732520536651,0.74044239,253.27,253.18,1.1849]
[1732520537053,23.776884,253.26,253.18,1.1849]
[1732520537270,0.74046206,253.25,253.18,1.1849]
[1732520537453,23.776884,253.24,253.18,1.1849]
[1732520537652,0.7405683,253.23,253.18,1.1849]
[1732520538778,6.58920817,253.21,253.11,1.1852]
[1732520538961,0.74062264,253.2,253.11,1.1852]
[1732520539462,23.776884,253.19,253.11,1.1852]
[1732520539666,23.776884,253.17,253.11,1.1852]
[1732520539856,0.74074383,253.16,253.11,1.1852]
[1732520540055,0.74074221,253.18,253.12,20.0]
[1732520540844,0.74074221,253.18,253.13,1.1851]
[1732520541081,23.776884,253.17,253.08,16.1881]
[1732520541256,31.10677751,253.17,253.09,1.1853]
[1732520542287,31.10677751,253.17,253.03,11.15759369]
[1732520542288,23.776884,253.14,253.04,1.1855]
[1732520542570,6.58920817,253.15,253.04,1.1855]
[1732520542571,23.776884,253.12,253.04,1.1855]
[1732520542755,0.74087288,253.11,253.04,1.1855]
[1732520543774,23.776884,253.14,253.1,20.0]
[1732520543990,23.776884,253.12,253.07,1.1854]
[1732520544147,0.74086811,253.11,253.07,1.1854]
[1732520544758,23.776884,253.13,253.07,1.1854]
[1732520544955,0.74083735,253.12,253.07,1.1854]
[1732520546080,23.776884,253.13,253.07,1.1854]
[1732520546277,23.776884,253.15,253.07,1.1854]
[1732520546463,23.776884,253.13,253.07,1.1854]
[1732520546769,23.776884,253.15,253.07,1.1854]
[1732520547082,23.776884,253.13,253.07,1.1854]
[1732520547382,0.7408651,253.12,253.05,20.0]
[1732520547673,23.776884,253.11,253.05,20.0]
[1732520547922,0.74093615,253.1,253.03,1.1856]
[1732520548573,23.776884,253.09,253.03,1.1856]
[1732520548878,0.74101094,253.08,253.03,1.1856]
[1732520549053,23.776884,253.09,253.03,1.1856]
[1732520549263,0.74099969,253.08,253.03,1.1856]
[1732520550586,0.74099969,253.08,253.01,20.0]
[1732520550882,23.776884,253.04,252.99,1.1858]
[1732520551172,23.776884,253.02,252.92,1.1861]
[1732520551381,0.74121257,253.01,252.92,1.1861]
[1732520552057,0.74121257,253.01,252.92,4.1514]
[1732520552254,0.74118445,253.02,252.92,4.1514]
[1732520552452,6.3816,253.07,252.93,5.18735429]
[1732520552453,23.776884,253.04,252.93,5.18735429]
[1732520552756,0.74111285,253.03,252.94,4.1511]
[1732520553063,0.74111285,253.06,252.94,4.1511]
[1732520553271,0.74111285,253.06,252.96,20.0]
[1732520553575,0.7410253,253.08,252.96,20.0]
[1732520553784,0.7410253,253.08,252.97,4.1506]
[1732520553975,23.776884,253.12,252.97,4.1506]
[1732520554166,23.776884,253.1,252.97,4.1506]
[1732520554365,23.776884,253.08,252.97,4.1506]
[1732520554567,0.74100926,253.07,252.97,4.1506]
[1732520554766,23.776884,253.1,252.97,4.1506]
[1732520555085,22.1455,253.15,253.01,20.0]
[1732520555086,0.74100968,253.09,253.01,20.0]
[1732520555250,0.74086285,253.14,253.01,20.0]
[1732520555873,6.58920817,253.18,253.01,25.18735429]
[1732520556076,0.74087473,253.17,253.01,25.18735429]
[1732520556254,11.01876765,253.17,253.02,4.1497]
[1732520556880,10.27789292,253.09,253.0,1.1857]
[1732520557064,23.776884,253.06,253.0,1.1857]
[1732520557269,23.776884,253.04,253.0,1.1857]
[1732520557468,0.74114588,253.03,253.0,1.1857]
[1732520557780,23.776884,253.05,253.0,1.1857]
[1732520557976,0.74112739,253.04,252.96,2.9648]
[1732520558869,0.74112715,253.06,252.96,2.9648]
[1732520559056,23.776884,253.05,252.96,4.1507]
[1732520559252,23.776884,253.03,252.96,1.1859]
[1732520559455,0.74116798,253.02,252.96,1.1859]
[1732520560487,34.05477692,253.01,252.91,1.1861]
[1732520560785,23.776884,252.99,252.91,1.1861]
[1732520560990,23.776884,252.97,252.91,1.1861]
[1732520561159,0.74140099,252.96,252.91,1.1861]
[1732520561359,23.776884,252.99,252.91,1.1861]
[1732520561360,23.776884,252.97,252.91,1.1861]
[1732520561662,23.776884,252.99,252.91,1.1861]
[1732520561663,0.74135599,252.96,252.91,1.1861]
[1732520562391,0.74135599,252.96,252.93,1.186]
[1732520562688,23.776884,252.97,252.93,1.186]
[1732520562870,23.776884,252.95,252.93,1.186]
[1732520563065,0.74141217,252.94,252.93,1.186]
[1732520563273,23.776884,252.95,252.9,1.1862]
[1732520563468,0.74140669,252.94,252.9,1.1862]
[1732520563858,23.776884,252.95,252.93,20.0]
[1732520564084,10.27789292,253.03,252.94,20.0]
[1732520564279,10.27789292,253.01,252.94,20.0]
[1732520564464,0.74136182,253.0,252.94,20.0]
[1732520564784,0.74136182,253.0,252.9,1.1862]
[1732520565680,23.776884,253.01,252.9,1.1862]
[1732520565857,0.74126591,253.0,252.91,20.0]
[1732520566059,0.74120933,253.06,252.93,20.0]
[1732520566260,0.74120933,253.06,252.91,5.43771715]
[1732520566261,0.74120933,253.06,252.95,20.0]
[1732520566960,0.74120933,253.06,252.96,1.1859]
[1732520567591,10.27789292,253.05,252.96,1.1859]
[1732520567788,0.74118849,253.04,252.96,1.1859]
[1732520567968,0.74118849,253.04,252.93,20.0]
[1732520569189,0.74119361,253.03,252.94,4.1511]
[1732520570266,0.74113896,253.02,252.94,4.1511]
[1732520570487,0.7411389,253.04,252.94,4.1511]
[1732520571171,6.0384,253.28,253.04,20.0]
[1732520571390,10.27789292,253.25,253.05,11.57572765]
[1732520571768,10.27789292,253.25,253.08,20.0]
[1732520572163,10.27789292,253.25,253.09,4.1486]
[1732520572578,23.776884,253.24,253.09,4.1486]
[1732520573876,23.776884,253.24,253.11,1.1852]
[1732520575294,23.776884,253.26,253.15,20.0]
[1732520575666,6.0384,253.28,253.15,20.0]
[1732520575873,6.0384,253.28,253.16,1.185]
[1732520576067,15.6241,253.29,253.16,1.185]
[1732520577607,23.776884,253.28,253.16,1.185]
[1732520578109,34.05477692,253.28,253.15,22.9626]
[1732520578285,23.776884,253.25,253.15,20.0]
[1732520578598,10.27789292,253.24,253.15,20.0]
[1732520578972,23.776884,253.23,253.15,20.0]
[1732520579491,23.776884,253.23,253.16,1.185]
[1732520580984,23.776884,253.27,253.16,1.185]
[1732520581381,10.27789292,253.26,253.12,16.5928]
[1732520581579,23.776884,253.25,253.15,20.0]
[1732520582102,23.776884,253.23,253.15,20.0]
[1732520582572,23.776884,253.23,253.16,1.185]
[1732520583085,23.776884,253.25,253.16,1.185]
[1732520585489,23.776884,253.27,253.16,1.185]
[1732520586170,34.05477692,253.28,253.16,1.185]
[1732520586774,34.05477692,253.28,253.16,4.1475]
[1732520586775,23.776884,253.28,253.16,4.1475]
[1732520586971,10.27789292,253.31,253.16,4.1475]
[1732520587171,26.41819292,253.35,253.16,24.1475]
[1732520588692,10.27789292,253.35,253.21,20.0]
[1732520589072,8.83342737,253.48,253.27,20.0]
[1732520589273,10.27789292,253.44,253.27,20.0]
[1732520590086,10.27789292,253.44,253.28,1.1844]
[1732520590292,23.776884,253.43,253.28,1.1844]
[1732520590892,23.776884,253.41,253.28,4.1455]
[1732520592280,22.0183,253.5,253.28,4.1455]
[1732520592281,23.776884,253.39,253.28,1.1844]
[1732520593002,23.776884,253.37,253.28,1.1844]
[1732520593301,23.776884,253.35,253.26,1.1845]
[1732520593507,10.27789292,253.34,253.24,6.645]
[1732520593804,10.27789292,253.3,253.24,1.1846]
[1732520593979,23.776884,253.29,253.22,1.1847]
[1732520594175,23.776884,253.29,253.19,1.1848]
[1732520595679,23.776884,253.27,253.17,16.5194]
[1732520596078,10.27789292,253.26,253.17,1.1849]
[1732520596288,23.776884,253.25,253.17,1.1849]
[1732520596700,23.776884,253.25,253.14,1.1851]
[1732520597080,135.7,253.46,253.16,20.0]
[1732520597081,23.776884,253.27,253.16,20.0]
[1732520597276,23.776884,253.27,253.18,20.0]
[1732520597503,23.776884,253.25,253.18,20.0]
[1732520597693,10.27789292,253.24,253.18,20.0]
[1732520597878,23.776884,253.23,253.14,21.1851]
[1732520598288,23.776884,253.25,253.14,21.1851]
[1732520598501,23.776884,253.27,253.14,24.1478]
[1732520599183,23.776884,253.29,253.15,20.0]
[1732520600003,23.776884,253.27,253.14,24.1478]
[1732520601616,10.27789292,253.32,253.14,35.72352765]
[1732520601793,10.27789292,253.36,253.18,20.0]
[1732520601989,32.72369292,253.38,253.22,20.0]
[1732520602293,22.4458,253.38,253.26,20.0]
[1732520602613,10.27789292,253.44,253.26,20.0]
[1732520602614,10.27789292,253.4,253.26,20.0]
[1732520603107,10.27789292,253.42,253.26,20.0]
[1732520603883,10.27789292,253.42,253.27,4.1457]
[1732520604104,10.27789292,253.44,253.27,4.1457]
[1732520605692,10.27789292,253.46,253.27,4.1457]
[1732520606017,10.27789292,253.46,253.29,4.1454]
[1732520606617,23.776884,253.45,253.29,4.1454]
[1732520607101,10.27789292,253.44,253.29,4.1454]
[1732520607305,23.776884,253.43,253.29,1.1844]
[1732520608190,10.27789292,253.44,253.29,1.1844]
[1732520608493,23.776884,253.43,253.29,1.1844]
[1732520610711,23.776884,253.43,253.29,21.1844]
[1732520611120,23.776884,253.43,253.33,20.0]
[1732520612510,23.776884,253.43,253.33,21.5789]
[1732520614016,23.776884,253.45,253.33,21.5789]
[1732520614198,23.776884,253.45,253.37,20.0]
[1732520614923,23.776884,253.47,253.37,20.0]
[1732520615617,10.27789292,253.51,253.37,21.5786]
[1732520615818,10.27789292,253.49,253.37,21.5786]
[1732520616422,10.27789292,253.51,253.37,21.5786]
[1732520616807,23.776884,253.5,253.37,21.5786]
[1732520617221,23.776884,253.52,253.37,21.5786]
[1732520617420,10.27789292,253.57,253.41,20.0]
[1732520618118,10.27789292,253.55,253.42,16.1672]
[1732520618325,10.27789292,253.53,253.42,16.1672]
[1732520618524,10.27789292,253.52,253.42,16.1672]
[1732520618821,23.776884,253.51,253.42,16.1672]
[1732520619128,23.776884,253.53,253.42,16.1672]
[1732520619426,10.27789292,253.52,253.42,16.1672]
[1732520619603,23.776884,253.51,253.42,16.1672]
[1732520620632,23.776884,253.53,253.42,16.1672]
[1732520622622,23.776884,253.53,253.42,17.7455]
[1732520623531,23.776884,253.5,253.42,16.1672]
[1732520623832,23.776884,253.5,253.38,6.0043]
[1732520623833,23.776884,253.48,253.38,6.0043]
[1732520624017,23.776884,253.46,253.38,6.0043]
[1732520624624,23.776884,253.48,253.38,6.0043]
[1732520625424,10.0,253.58,253.41,20.0]
[1732520625425,23.776884,253.5,253.41,20.0]
[1732520626313,23.776884,253.5,253.42,1.5784]
[1732520627236,23.776884,253.5,253.38,6.0043]
[1732520627531,23.776884,253.54,253.39,1.5785]
[1732520628620,10.27789292,253.53,253.39,1.5785]
[1732520629017,23.776884,253.52,253.39,1.5785]
[1732520629613,23.776884,253.5,253.38,6.0043]
[1732520630609,23.776884,253.52,253.38,7.5829]
[1732520631030,23.776884,253.54,253.38,13.38172826]
[1732520631440,23.776884,253.54,253.41,20.0]
[1732520631641,10.27789292,253.53,253.42,20.0]
[1732520632019,23.776884,253.52,253.42,20.0]
[1732520632221,23.776884,253.54,253.42,20.0]
[1732520632620,23.776884,253.55,253.42,20.0]
[1732520633526,23.776884,253.56,253.43,1.5783]
[1732520633724,23.776884,253.56,253.43,21.5783]
[1732520634025,10.27789292,253.57,253.43,21.5783]
[1732520635124,10.27789292,253.55,253.43,21.5783]
[1732520635430,23.776884,253.54,253.43,21.5783]
[1732520636443,10.27789292,253.47,253.38,7.5829]
[1732520637344,10.27789292,253.51,253.38,7.5829]
[1732520637554,23.776884,253.52,253.38,7.5829]
[1732520637721,23.776884,253.52,253.41,20.0]
[1732520638740,23.776884,253.52,253.42,1.5784]
[1732520639254,10.27789292,253.51,253.42,1.5784]
[1732520639755,10.27789292,253.51,253.41,20.0]
[1732520640122,10.0,253.64,253.41,20.0]
[1732520640325,10.27789292,253.58,253.42,42.4061]
[1732520641437,10.27789292,253.58,253.43,1.5783]
[1732520642053,23.776884,253.57,253.43,1.5783]
[1732520642230,10.27789292,253.58,253.43,1.5783]
[1732520642538,10.27789292,253.58,253.43,5.5241]
[1732520642738,10.27789292,253.58,253.46,20.0]
[1732520643250,10.27789292,253.58,253.45,20.0]
[1732520643433,10.27789292,253.58,253.46,20.0]
[1732520643756,10.27789292,253.58,253.47,3.94]
[1732520643937,10.27789292,253.58,253.46,20.0]
[1732520644757,10.27789292,253.58,253.45,20.0]
[1732520644937,10.27789292,253.58,253.46,20.0]
[1732520645943,10.27789292,253.58,253.45,20.0]
[1732520646144,10.27789292,253.58,253.46,20.0]
[1732520648560,10.27789292,253.58,253.47,1.578]
[1732520650743,23.776884,253.63,253.49,6.4958]
[1732520650941,10.27789292,253.63,253.49,6.4958]
[1732520651867,10.27789292,253.63,253.5,1.5779]
[1732520652558,10.27789292,253.56,253.49,6.4958]
[1732520652860,10.27789292,253.57,253.49,6.4958]
[1732520653162,10.27789292,253.57,253.49,8.0737]
[1732520653362,10.27789292,253.58,253.49,8.0737]
[1732520653845,10.27789292,253.59,253.49,8.0737]
[1732520654443,10.27789292,253.58,253.49,8.0737]
[1732520654959,10.27789292,253.6,253.49,8.0737]
[1732520656052,10.27789292,253.57,253.49,6.4958]
[1732520656253,10.27789292,253.58,253.49,6.4958]
[1732520656549,10.27789292,253.59,253.49,8.0737]
[1732520657273,10.27789292,253.59,253.49,6.4958]
[1732520657444,34.05477692,253.59,253.49,6.4958]
[1732520657643,10.27789292,253.58,253.49,6.4958]
[1732520657942,10.27789292,253.63,253.49,13.64348051]
[1732520658142,10.27789292,253.62,253.49,13.64348051]
[1732520659243,10.27789292,253.62,253.5,1.5779]
[1732520659872,10.27789292,253.6,253.49,12.06558051]
[1732520660051,10.27789292,253.56,253.48,15.2431]
[1732520661357,23.776884,253.55,253.48,15.2431]
[1732520661548,10.27789292,253.54,253.48,15.2431]
[1732520661749,10.27789292,253.54,253.43,7.6361]
[1732520662468,10.27789292,253.52,253.43,6.0578]
[1732520663761,23.776884,253.51,253.42,15.4374]
[1732520664578,10.27789292,253.52,253.42,17.0157]
[1732520665253,23.776884,253.51,253.42,17.0157]
[1732520665669,23.776884,253.51,253.42,15.4374]
[1732520665872,10.27789292,253.52,253.42,15.4374]
[1732520666081,23.776884,253.51,253.42,15.4374]
[1732520666278,23.776884,253.51,253.42,17.0157]
[1732520666652,10.27789292,253.52,253.42,17.0157]
[1732520668466,10.27789292,253.52,253.43,5.56978051]
[1732520668666,10.27789292,253.52,253.43,7.14808051]
[1732520669377,10.27789292,253.52,253.42,15.4374]
[1732520669772,10.27789292,253.52,253.42,17.0157]
[1732520670362,6.56092702,253.49,253.42,15.4374]
[1732520670955,6.56092702,253.47,253.37,6.2054]
[1732520671276,6.56092702,253.47,253.38,1.5786]
[1732520674379,23.776884,253.46,253.37,7.784]
[1732520674985,6.56092702,253.46,253.37,7.784]
[1732520677363,6.56092702,253.46,253.37,6.2054]
[1732520677578,6.56092702,253.46,253.37,7.784]
[1732520681062,23.776884,253.51,253.37,7.784]
[1732520681063,6.56092702,253.44,253.37,7.784]
[1732520681370,6.56092702,253.44,253.36,15.9533]
[1732520682560,6.56092702,253.44,253.36,17.532]
[1732520683178,6.56092702,253.47,253.37,5.06422495]
[1732520683486,23.776884,253.46,253.37,5.06422495]
[1732520683690,23.776884,253.46,253.37,6.64282495]
[1732520686096,23.776884,253.46,253.37,1.5786]
[1732520686393,6.56092702,253.45,253.37,1.5786]
[1732520687289,6.56092702,253.47,253.37,1.5786]
[1732520687495,23.776884,253.46,253.37,1.5786]
[1732520688368,23.776884,253.46,253.37,76.5786]
[1732520688573,23.776884,253.57,253.37,76.5786]
[1732520688789,23.1063,253.58,253.4,20.0]
[1732520688790,6.56092702,253.53,253.4,20.0]
[1732520688994,23.1063,253.58,253.41,6.1659]
[1732520689304,6.56092702,253.52,253.41,6.1659]
[1732520689690,23.1063,253.58,253.41,6.1659]
[1732520689691,6.56092702,253.54,253.41,6.1659]
[1732520690195,6.56092702,253.54,253.42,1.5784]
[1732520690571,23.776884,253.53,253.42,1.5784]
[1732520695995,6.56092702,253.56,253.43,15.5613]
[1732520697000,6.56092702,253.56,253.44,1.5782]
[1732520697300,23.776884,253.55,253.44,1.5782]
[1732520697484,6.56092702,253.56,253.44,1.5782]
[1732520698401,6.56092702,253.58,253.44,1.5782]
[1732520698587,23.776884,253.57,253.47,1.578]
[1732520699794,23.776884,253.57,253.43,15.5613]
[1732520700003,23.776884,253.59,253.46,20.0]
[1732520700302,23.776884,253.57,253.44,15.55921432]
[1732520700507,23.776884,253.57,253.44,10.58812495]
[1732520700710,23.776884,253.55,253.44,1.5782]
[1732520701007,6.56092702,253.54,253.44,1.5782]
[1732520701413,6.56092702,253.58,253.44,5.5239]
[1732520701906,6.56092702,253.56,253.44,5.5239]
[1732520702309,6.56092702,253.56,253.44,1.5782]
[1732520702610,23.776884,253.5,253.43,17.1396]
[1732520703402,23.776884,253.51,253.43,17.1396]
[1732520703707,23.776884,253.52,253.43,17.1396]
[1732520704211,6.56092702,253.51,253.43,15.5613]
[1732520704416,6.56092702,253.49,253.43,15.5613]
[1732520704712,23.776884,253.48,253.43,15.5613]
[1732520705415,23.776884,253.46,253.38,1.5786]
[1732520705595,23.776884,253.44,253.37,91.2549]
[1732520705790,23.776884,253.42,253.37,91.2549]
[1732520705996,23.776884,253.42,253.37,75.0]
[1732520706199,23.776884,253.4,253.37,75.0]
[1732520707022,23.776884,253.42,253.37,75.0]
[1732520708211,23.776884,253.43,253.37,75.0]
[1732520708522,23.776884,253.45,253.37,75.0]
[1732520708814,6.56092702,253.46,253.37,75.0]
[1732520709222,6.56092702,253.48,253.37,75.0]
[1732520709398,6.56092702,253.5,253.37,76.5786]
[1732520711413,23.776884,253.49,253.38,5.06422495]
[1732520711615,23.776884,253.49,253.4,22.3703]
[1732520712117,23.776884,253.5,253.4,22.3703]
[1732520712614,23.776884,253.5,253.4,23.9487]
[1732520712912,6.56092702,253.55,253.43,20.0]
[1732520714022,23.776884,253.54,253.44,1.5782]
[1732520715121,12.21400325,253.63,253.44,1.5782]
[1732520715323,6.56092702,253.59,253.44,1.5782]
[1732520716529,6.56092702,253.57,253.44,1.5782]
[1732520717028,23.776884,253.56,253.44,1.5782]
[1732520717205,23.776884,253.54,253.44,1.5782]
[1732520717924,23.776884,253.52,253.4,23.9488]
[1732520720924,23.776884,253.5,253.4,23.9488]
[1732520721721,6.56092702,253.49,253.4,23.9488]
[1732520721908,23.776884,253.48,253.4,23.9488]
[1732520722803,23.776884,253.5,253.4,23.9488]
[1732520723612,23.776884,253.52,253.4,23.9488]
[1732520725539,23.776884,253.52,253.43,20.0]
[1732520726036,6.56092702,253.56,253.43,20.0]
[1732520726509,6.56092702,253.57,253.43,20.0]
[1732520727234,6.56092702,253.55,253.43,20.0]
[1732520727429,6.56092702,253.55,253.44,1.5782]
[1732520727830,23.776884,253.54,253.44,1.5782]
[1732520728515,23.776884,253.56,253.44,1.5782]
[1732520731308,23.776884,253.52,253.44,1.5782]
[1732520731513,23.776884,253.52,253.43,20.0]
[1732520731734,23.776884,253.54,253.43,20.0]
[1732520732634,23.776884,253.54,253.43,21.5783]
[1732520734416,23.776884,253.56,253.43,21.5783]
[1732520739343,23.776884,253.54,253.43,21.5783]
[1732520740221,6.56092702,253.53,253.43,21.5783]
[1732520740437,23.776884,253.52,253.43,21.5783]
[1732520746038,22.0942,253.63,253.43,21.5783]
[1732520746237,6.56092702,253.61,253.45,15.3086]
[1732520746541,6.56092702,253.61,253.48,20.0]
[1732520746938,6.56092702,253.63,253.52,20.0]
[1732520747234,6.56092702,253.63,253.53,1.5777]
[1732520747443,6.56092702,253.65,253.54,15.3601]
[1732520748438,6.56092702,253.65,253.54,16.9377]
[1732520749143,23.776884,253.64,253.54,16.9377]
[1732520749644,182.41278846,253.76,253.61,20.0]
[1732520749944,6.56092702,253.73,253.61,24.97108937]
[1732520750341,6.56092702,253.73,253.62,4.97108937]
[1732520750637,6.56092702,253.73,253.63,1.5771]
[1732520751221,23.776884,253.74,253.63,1.1828]
[1732520752032,23.776884,253.74,253.63,6.15388937]
[1732520752335,23.776884,253.74,253.64,4.97108937]
[1732520754819,23.776884,253.74,253.64,20.27568937]
[1732520756150,6.56092702,253.75,253.64,20.27568937]
[1732520756151,23.776884,253.75,253.64,21.45838937]
[1732520756926,182.41278846,253.76,253.64,21.45838937]
[1732520757125,188.97371548,253.76,253.64,21.45838937]
[1732520758247,23.776884,253.75,253.64,21.45838937]
[1732520758441,30.33781102,253.75,253.64,21.45838937]
[1732520759143,23.776884,253.75,253.64,21.45838937]
[1732520760833,30.33781102,253.75,253.64,20.27568937]